bitfinex/quotes_ETHUSD_20240902
["timestamp","ask_amount","ask_price","bid_price","bid_amount"]
[1725298169997,2.479,2526.1,2525.7,0.11022969]
[1725298170400,6.28767,2526.1,2525.7,0.11022969]
[1725298170744,5.72684513,2526.0,2525.7,0.11022969]
[1725298170953,3.959,2525.9,2525.3,6.95981]
[1725298171254,3.959,2525.9,2525.4,0.11007644]
[1725298171843,4.984373,2526.1,2525.4,0.11007644]
[1725298172447,1.025613,2526.1,2525.6,3.95944]
[1725298172603,1.025613,2526.1,2525.5,3.95947]
[1725298172604,3.95867,2526.1,2525.5,4.50947]
[1725298172799,3.95867,2526.1,2525.7,0.1097703]
[1725298173048,3.95867,2526.1,2525.6,0.10982052]
[1725298173351,2.479,2526.2,2525.7,0.1097703]
[1725298174699,2.479,2526.2,2525.7,4.0689503]
[1725298174904,2.479,2526.2,2525.8,0.41526607]
[1725298175207,2.479,2526.2,2525.9,0.10966987]
[1725298175407,0.01,2526.3,2525.9,0.10966987]
[1725298175732,0.01,2526.3,2526.1,3.95855]
[1725298175933,0.01,2526.3,2525.9,0.18883641]
[1725298176106,0.01,2526.3,2525.8,7.37428607]
[1725298176307,0.01,2526.3,2526.0,3.95872]
[1725298176524,0.01,2526.3,2526.1,0.10855181]
[1725298177756,0.01,2526.3,2526.2,3.95851]
[1725298178059,0.01,2526.3,2526.2,4.06701161]
[1725298178203,0.01,2526.3,2526.2,0.10850161]
[1725298178671,0.01,2526.3,2526.0,7.91743]
[1725298178878,0.01,2526.3,2526.1,0.65855181]
[1725298179705,0.01,2526.3,2526.1,4.61720181]
[1725298180069,0.01,2526.3,2526.2,3.95851]
[1725298180273,0.01,2526.3,2526.2,4.06701161]
[1725298180716,0.01,2526.3,2526.2,4.14617304]
[1725298180899,0.01,2526.3,2526.2,6.67030255]
[1725298184225,2.4935,2526.3,2526.2,6.67030255]
[1725298184530,2.4935,2526.3,2526.2,4.06701161]
[1725298185024,0.01,2526.3,2526.2,4.06701161]
[1725298185226,0.01,2526.3,2526.2,4.14617273]
[1725298186937,0.01,2526.3,2526.2,4.06701161]
[1725298187282,0.01,2526.3,2526.2,0.10850161]
[1725298188600,0.01,2526.3,2526.2,4.06701161]
[1725298188818,0.01,2526.3,2526.2,6.86757877]
[1725298188985,0.01,2526.3,2526.2,10.90525014]
[1725298189187,0.01,2526.3,2526.2,13.90525014]
[1725298189894,0.01,2526.3,2526.2,9.86757877]
[1725298192942,0.01,2526.3,2526.2,10.41757877]
[1725298193243,0.01,2526.3,2526.2,14.37608877]
[1725298193399,0.01,2526.3,2526.2,10.41757877]
[1725298194009,0.01,2526.3,2526.2,5.90906877]
[1725298194212,0.01,2526.3,2526.2,2.90906877]
[1725298195146,0.01,2526.3,2526.2,6.9467396]
[1725298195443,0.01,2526.3,2526.2,10.9052496]
[1725298195648,0.01,2526.3,2526.2,11.4552496]
[1725298196699,0.01,2526.3,2526.2,11.37608877]
[1725298197930,0.01,2526.3,2526.2,7.41757877]
[1725298198657,0.01,2526.3,2526.2,7.49673584]
[1725298198857,0.01,2526.3,2526.2,11.45524584]
[1725298199371,0.01,2526.3,2526.2,7.49673584]
[1725298200039,0.01,2526.3,2526.2,11.45524584]
[1725298200373,0.01,2526.3,2526.2,13.65268877]
[1725298200584,0.01,2526.3,2526.2,16.65268877]
[1725298200978,0.01,2526.3,2526.2,14.37608877]
[1725298202033,0.01,2526.3,2526.2,14.77394601]
[1725298202284,0.01,2526.3,2526.2,17.06124601]
[1725298202791,0.126129,2526.7,2526.6,14.16094]
[1725298203086,0.126129,2526.7,2526.6,20.27411914]
[1725298203379,0.126129,2526.7,2526.6,24.23199914]
[1725298204279,0.126129,2526.7,2526.6,23.83413513]
[1725298204451,0.126129,2526.7,2526.6,24.23166806]
[1725298204792,0.126129,2526.7,2526.6,26.96709667]
[1725298205291,9e-06,2526.7,2526.6,26.96709667]
[1725298205589,9e-06,2526.7,2526.6,32.57547279]
[1725298206497,9e-06,2526.7,2526.6,37.15777536]
[1725298207480,9e-06,2526.7,2526.6,22.88009823]
[1725298207662,9e-06,2526.7,2526.6,24.64801336]
[1725298207983,9e-06,2526.7,2526.6,28.60589336]
[1725298208150,9e-06,2526.7,2526.6,32.97377536]
[1725298208534,2.4546,2528.6,2528.2,3.95529]
[1725298208694,2.4546,2528.6,2528.3,4.03428515]
[1725298208989,2.4546,2528.6,2528.1,9.67878513]
[1725298209211,2.4546,2528.6,2528.1,3.95542]
[1725298209495,2.4546,2528.6,2528.3,7.91033]
[1725298209698,2.4546,2528.6,2528.4,3.95505]
[1725298209906,2.4546,2528.6,2528.3,7.91024]
[1725298210117,2.4546,2528.6,2528.3,3.95512]
[1725298210317,3.95407,2529.1,2528.3,3.95512]
[1725298210318,2.4546,2529.1,2528.6,3.95466]
[1725298210612,2.4546,2529.1,2528.7,3.62907904]
[1725298210773,2.4546,2529.1,2528.8,0.07907904]
[1725298210992,6.40859,2529.1,2528.7,23.53]
[1725298211305,2.3148,2529.0,2528.7,19.98]
[1725298211487,2.3148,2529.0,2528.8,0.55]
[1725298212014,0.126129,2529.3,2528.9,23.93413]
[1725298212224,0.126129,2529.3,2529.2,3.95381]
[1725298212721,0.126129,2529.3,2529.2,4.58286975]
[1725298213218,0.126129,2529.3,2529.2,0.62905975]
[1725298213438,0.126129,2529.3,2529.2,4.58286975]
[1725298213725,0.126129,2529.3,2529.2,11.80699068]
[1725298213933,0.126129,2529.3,2529.2,3.55]
[1725298214277,0.126129,2529.3,2529.2,8.60358189]
[1725298214480,0.126129,2529.3,2529.2,20.78600189]
[1725298214673,0.126129,2529.3,2529.2,20.51569096]
[1725298214922,0.126129,2529.3,2529.2,12.52901]
[1725298215118,0.126129,2529.3,2529.2,3.55]
[1725298215693,0.126129,2529.3,2529.2,0.55]
[1725298216212,4.079789,2529.3,2528.7,4.62152093]
[1725298216380,2.415729,2529.3,2528.8,6.95438]
[1725298216733,2.415729,2529.3,2528.8,3.0]
[1725298216940,3.95423,2529.0,2528.4,3.95504]
[1725298217100,3.95439,2528.9,2528.3,6.22412093]
[1725298217277,4.1954729,2529.2,2528.4,0.0790832]
[1725298217482,2.415729,2529.3,2528.7,3.95456]
[1725298217714,2.415729,2529.3,2528.8,3.95437]
[1725298217924,2.415729,2529.3,2528.8,4.05772441]
[1725298218088,6.369419,2529.3,2528.8,4.05772441]
[1725298218421,6.369419,2529.3,2528.8,0.10339441]
[1725298218422,2.415729,2529.3,2528.8,0.10339441]
[1725298218781,2.415729,2529.3,2528.9,0.55]
[1725298219014,2.415729,2529.3,2528.9,0.65341477]
[1725298219587,2.415729,2529.3,2529.0,3.95408]
[1725298219787,0.126129,2529.3,2529.1,0.55]
[1725298220143,0.126129,2529.3,2529.2,23.93381]
[1725298220346,0.126129,2529.3,2529.2,24.58618627]
[1725298220495,0.126129,2529.3,2529.2,20.63237627]
[1725298220840,0.126129,2529.3,2529.2,20.08237627]
[1725298221636,10.385149,2529.3,2529.2,0.10237627]
[1725298221848,6.30598,2528.9,2528.8,19.98]
[1725298222141,6.30598,2528.9,2528.4,0.3974]
[1725298222142,6.30598,2528.9,2528.6,19.98]
[1725298222436,2.3517,2528.9,2528.6,19.98]
[1725298223137,3.95457,2528.8,2528.6,19.98]
[1725298223344,3.95457,2528.8,2528.4,7.28]
[1725298223345,3.95469,2528.7,2528.5,19.98]
[1725298223654,3.95457,2528.8,2528.5,19.98]
[1725298224909,2.3517,2528.9,2528.5,23.93491]
[1725298225206,2.3017,2528.9,2528.6,4.03374587]
[1725298225404,2.3017,2528.9,2528.6,0.07908587]
[1725298225605,2.3017,2528.9,2528.7,0.10289452]
[1725298225924,6.881663,2528.9,2528.7,0.10289452]
[1725298226317,3.95444,2528.8,2528.7,0.10289452]
[1725298227432,7.90888,2528.8,2528.7,0.10289452]
[1725298227862,3.95477,2528.6,2528.2,19.98]
[1725298228075,3.95492,2528.5,2528.2,19.98]
[1725298228219,3.95508,2528.4,2528.2,19.98]
[1725298228420,3.95508,2528.4,2528.0,7.28]
[1725298228421,3.95551,2528.2,2527.9,19.98]
[1725298228727,3.95598,2527.9,2527.6,19.98]
[1725298229056,6.40448,2527.7,2527.3,27.26]
[1725298229369,3.95656,2527.5,2527.3,27.26]
[1725298229531,6.40461,2527.7,2527.3,27.26]
[1725298229961,2.4483,2527.7,2527.4,3.9565]
[1725298230275,2.4483,2527.7,2527.3,27.26]
[1725298230276,3.95604,2527.8,2527.5,3.12165]
[1725298230415,3.95626,2527.7,2527.3,27.26]
[1725298230615,3.95555,2528.1,2527.0,7.28]
[1725298230616,2.3111,2527.6,2527.0,7.28]
[1725298230818,3.95658,2527.5,2527.1,3.07913266]
[1725298231017,2.3111,2527.6,2527.1,6.95698]
[1725298231245,3.95679,2527.3,2527.1,3.0]
[1725298231525,3.95663,2527.5,2527.1,3.0]
[1725298231726,7.91323,2527.5,2527.1,3.0]
[1725298232070,3.9566,2527.5,2527.1,3.0]
[1725298232275,3.95665,2527.4,2527.1,3.0]
[1725298232577,10.22479,2527.3,2527.1,3.0]
[1725298232877,10.22479,2527.3,2526.9,19.98]
[1725298232878,6.26792,2527.3,2526.9,19.98]
[1725298233037,6.26792,2527.3,2527.0,2.726]
[1725298233242,6.26792,2527.3,2526.9,19.98]
[1725298233775,6.26338923,2527.3,2526.9,19.98]
[1725298233979,3.95721,2527.1,2526.9,19.98]
[1725298234156,3.95709,2527.2,2526.6,19.98]
[1725298234462,4.22412093,2527.6,2526.6,19.98]
[1725298234463,2.4412,2527.1,2526.6,19.98]
[1725298234623,2.4412,2527.1,2526.7,7.19841115]
[1725298234849,2.4412,2527.1,2526.8,0.07914193]
[1725298235054,6.39839,2527.1,2526.7,3.161534]
[1725298235285,6.39839,2527.1,2526.6,19.98]
[1725298235488,10.35559,2527.1,2526.6,19.98]
[1725298235694,6.39839,2527.1,2526.6,19.98]
[1725298235889,6.39839,2527.1,2526.7,0.07914812]
[1725298235890,2.4412,2527.1,2526.7,0.07914812]
[1725298236053,2.4412,2527.1,2526.7,3.12970881]
[1725298236054,6.39832,2527.1,2526.7,3.12970881]
[1725298236386,6.39832,2527.1,2526.8,0.07914694]
[1725298236387,2.4412,2527.1,2526.8,0.07914694]
[1725298237091,2.4412,2527.1,2526.7,3.12970881]
[1725298237295,2.4412,2527.1,2526.6,19.98]
[1725298237296,6.39843,2527.1,2526.6,19.98]
[1725298237453,6.39843,2527.1,2526.7,0.55]
[1725298237975,6.39831,2527.1,2526.7,0.55]
[1725298238186,6.39831,2527.1,2526.7,3.726796]
[1725298238388,3.95753,2526.9,2526.6,19.98]
[1725298238694,3.95753,2526.9,2526.5,19.98]
[1725298238900,3.95759,2526.8,2526.5,21.403825]
[1725298239489,3.95753,2526.9,2526.5,21.403825]
[1725298239490,3.95773,2526.7,2526.5,21.403825]
[1725298239702,3.95788,2526.6,2526.5,19.98]
[1725298239882,2.4412,2527.0,2526.5,19.98]
[1725298240053,2.4412,2527.0,2526.5,23.93804]
[1725298240255,2.4412,2527.0,2526.6,2.789621]
[1725298240566,2.4412,2527.0,2526.7,0.10015979]
[1725298240567,3.95743,2526.9,2526.7,0.10015979]
[1725298241152,3.95757,2526.8,2526.7,0.10015979]
[1725298241379,3.95757,2526.8,2526.5,19.98]
[1725298241600,3.95774,2526.7,2526.5,19.98]
[1725298241897,3.9582,2526.4,2526.1,22.98]
[1725298242056,7.91654,2526.4,2526.1,23.913851]
[1725298242253,3.9582,2526.4,2526.1,23.913851]
[1725298242896,10.35678,2526.6,2526.2,3.1193851]
[1725298243105,6.39879,2526.6,2526.2,3.1193851]
[1725298243426,10.35677,2526.6,2526.2,3.1193851]
[1725298243577,10.35678,2526.6,2526.2,3.1193851]
[1725298243780,6.39878,2526.6,2526.2,3.1193851]
[1725298244483,3.9582,2526.4,2526.2,3.1193851]
[1725298245010,3.95804,2526.5,2526.2,3.1193851]
[1725298245172,6.39878,2526.6,2526.2,3.1193851]
[1725298245888,3.9581,2526.5,2526.2,3.1193851]
[1725298246085,3.9581,2526.5,2526.1,3.0]
[1725298246511,6.39878,2526.6,2526.1,3.0]
[1725298246820,6.39878,2526.6,2526.1,6.95866]
[1725298247490,6.39878,2526.6,2526.1,3.0]
[1725298247491,2.4408,2526.6,2526.1,3.0]
[1725298247688,2.4408,2526.6,2526.1,4.423875]
[1725298247689,3.95819,2526.5,2526.1,4.423875]
[1725298247878,7.91638,2526.5,2526.1,4.423875]
[1725298248080,3.95813,2526.5,2526.1,4.423875]
[1725298248419,2.32,2526.9,2526.5,3.95794]
[1725298248575,6.27681,2527.3,2526.6,3.62914496]
[1725298248770,2.32,2527.3,2526.8,3.95753]
[1725298248970,2.32,2527.3,2526.9,4.03653945]
[1725298250119,6.27682,2527.3,2526.8,0.83781307]
[1725298251073,6.27682,2527.3,2526.6,3.55]
[1725298251074,3.95696,2527.2,2526.6,3.55]
[1725298251275,2.3911,2527.1,2526.5,19.98]
[1725298251691,2.3911,2527.1,2526.8,3.9575]
[1725298252011,2.3911,2527.1,2526.7,3.95765]
[1725298252225,2.3911,2527.1,2526.7,7.91529]
[1725298252515,2.3911,2527.1,2526.7,3.95764]
[1725298253015,6.34822,2527.1,2526.6,0.55]
[1725298253218,6.34822,2527.1,2526.6,2.998793]
[1725298253416,3.95727,2527.0,2526.6,2.998793]
[1725298253922,7.91507,2526.9,2526.5,19.98]
[1725298254214,3.95751,2526.9,2526.5,19.98]
[1725298254418,3.95751,2526.9,2526.4,23.93816]
[1725298254720,6.3483,2527.1,2526.5,3.95804]
[1725298254923,2.3911,2527.1,2526.7,3.95763]
[1725298255216,2.3911,2527.1,2526.7,4.0367746]
[1725298255413,2.3911,2527.1,2526.7,0.85445646]
[1725298255589,6.34821,2527.1,2526.8,0.10025081]
[1725298255989,2.3911,2527.1,2526.7,4.81216646]
[1725298256190,2.3911,2527.1,2526.9,0.10020064]
[1725298256487,6.34822,2527.1,2526.8,0.10025081]
[1725298256688,6.34822,2527.1,2527.0,0.10015047]
[1725298256891,3.95726,2527.0,2526.9,0.10020064]
[1725298257211,3.95751,2526.9,2526.4,25.18634725]
[1725298258215,3.95765,2526.8,2526.4,21.22826725]
[1725298258419,2.3061,2526.7,2526.4,21.22826725]
[1725298260190,6.26384,2526.7,2526.2,8.5247625]
[1725298260404,10.22165,2526.7,2526.2,8.5247625]
[1725298260632,3.95806,2526.5,2526.0,27.26]
[1725298260832,3.95829,2526.4,2526.1,3.0]
[1725298261006,3.95829,2526.4,2526.1,5.993891]
[1725298261192,3.95829,2526.4,2526.1,2.993891]
[1725298261590,6.23978,2526.3,2526.1,2.993891]
[1725298261786,3.95852,2526.2,2525.9,19.98]
[1725298262021,3.95852,2526.2,2525.6,3.95932]
[1725298262590,3.95883,2526.0,2525.5,31.2196]
[1725298262790,3.95883,2526.0,2525.6,7.081405]
[1725298263530,2.3213,2525.9,2525.6,3.121965]
[1725298263892,2.3213,2525.9,2525.5,3.9596]
[1725298264092,3.9586,2526.2,2525.5,3.95953]
[1725298264344,2.4227,2526.1,2525.7,3.95929]
[1725298264506,2.4227,2526.1,2525.8,3.95912]
[1725298264849,6.38138,2526.1,2525.5,3.95951]
[1725298265021,3.95905,2525.9,2525.4,3.95969]
[1725298265223,7.91813,2525.9,2525.5,3.0]
[1725298265422,6.45931,2525.7,2525.2,27.26]
[1725298265595,3.95947,2525.6,2525.2,27.26]
[1725298265791,2.4999,2526.0,2525.3,0.07919057]
[1725298266320,2.4999,2526.0,2525.5,3.95947]
[1725298266705,2.4999,2526.0,2525.4,4.03894428]
[1725298266706,3.95898,2525.9,2525.4,3.95976]
[1725298267498,7.91804,2525.9,2525.4,3.95976]
[1725298267694,3.95932,2525.7,2525.2,34.341981]
[1725298268122,3.95932,2525.7,2525.2,7.081981]
[1725298268320,3.95932,2525.7,2525.2,3.95997]
[1725298268712,2.3844,2525.8,2525.2,3.95997]
[1725298268713,2.3844,2525.8,2525.4,3.95975]
[1725298269755,2.3844,2525.8,2525.2,3.95997]
[1725298269756,3.95933,2525.7,2525.2,3.95997]
[1725298270239,2.3278,2525.5,2525.0,3.96028]
[1725298270407,2.3278,2525.5,2525.1,3.0]
[1725298270738,2.3278,2525.5,2525.1,3.10270061]
[1725298270739,6.28754,2525.5,2525.1,3.10270061]
[1725298271238,2.3278,2525.5,2525.1,0.10270061]
[1725298271598,6.28749,2525.5,2525.1,0.10270061]
[1725298271801,2.3278,2525.5,2525.1,0.10270061]
[1725298271994,6.45181,2526.0,2525.4,3.95976]
[1725298272242,6.45181,2526.0,2525.4,3.95967]
[1725298272243,6.45184,2526.0,2525.4,3.95967]
[1725298272436,6.45184,2526.0,2525.5,0.10259154]
[1725298272634,6.45184,2526.0,2525.5,4.06218154]
[1725298273053,3.95899,2525.9,2525.5,4.06218154]
[1725298273208,7.91806,2525.9,2525.5,0.10259154]
[1725298273408,2.3009,2525.8,2525.5,0.10259154]
[1725298273683,2.3009,2525.8,2525.3,4.03909387]
[1725298273814,2.3009,2525.8,2525.6,0.10254131]
[1725298274014,2.3009,2525.8,2525.5,3.9596]
[1725298274237,2.3009,2525.8,2525.7,0.10240628]
[1725298274436,2.3009,2525.8,2525.6,0.10240703]
[1725298274644,2.3009,2525.8,2525.7,0.10235681]
[1725298275046,2.3009,2525.8,2525.5,3.9596]
[1725298275250,2.3009,2525.8,2525.7,0.10235681]
[1725298275424,2.3009,2525.8,2525.6,0.10240703]
[1725298275624,2.3009,2525.8,2525.7,0.10258291]
[1725298275856,6.26004,2525.8,2525.7,0.10258291]
[1725298276059,3.9593,2525.7,2525.1,3.96014]
[1725298277061,7.91869,2525.7,2525.2,3.96007]
[1725298277358,3.322794,2525.8,2525.1,3.96014]
[1725298277359,2.3541,2525.5,2525.1,3.96014]
[1725298277651,2.3541,2525.5,2525.2,3.96006]
[1725298278362,6.31373,2525.5,2525.0,3.96038]
[1725298278560,2.3541,2525.2,2524.9,7.28]
[1725298278915,2.3541,2525.2,2524.8,23.94067]
[1725298279835,2.3541,2525.2,2524.9,3.9605]
[1725298280027,2.3541,2525.2,2524.8,23.94067]
[1725298280028,2.3541,2525.2,2525.1,3.96023]
[1725298280257,6.31355,2525.6,2525.1,3.96023]
[1725298280664,3.95962,2525.5,2525.1,3.96023]
[1725298281329,3.95962,2525.5,2525.0,3.96038]
[1725298281731,2.3541,2525.6,2525.2,3.96007]
[1725298282133,2.3541,2525.6,2525.2,3.95995]
[1725298282855,6.31367,2525.6,2525.1,3.96018]
[1725298283565,2.3541,2525.6,2525.2,3.96005]
[1725298284983,2.3247,2525.4,2525.0,3.96038]
[1725298285180,2.3247,2525.4,2525.1,3.9602]
[1725298285694,2.3247,2525.4,2525.2,0.09977205]
[1725298286292,6.23462,2525.3,2525.2,0.09977205]
[1725298286451,10.19462,2525.3,2524.8,23.94068]
[1725298286653,10.19462,2525.3,2525.2,0.10004063]
[1725298286897,3.96023,2525.2,2524.8,19.98]
[1725298287558,3.96035,2525.1,2524.8,19.98]
[1725298287753,3.96039,2525.0,2524.8,19.98]
[1725298287988,2.2747,2524.9,2524.5,3.96116]
[1725298288389,6.23527,2524.9,2524.4,6.96126]
[1725298288557,6.23527,2524.9,2524.4,13.616648]
[1725298288955,2.2747,2524.9,2524.4,5.694128]
[1725298289171,2.2747,2524.9,2524.5,3.96116]
[1725298289392,2.2747,2524.9,2524.5,5.3228248]
[1725298289697,7.92094,2525.0,2524.1,7.28]
[1725298289698,3.96119,2524.5,2524.1,7.28]
[1725298289991,3.96119,2524.5,2524.1,11.24178]
[1725298290198,2.2747,2524.6,2524.2,1.124178]
[1725298291335,6.23573,2524.6,2524.1,11.24166]
[1725298291695,2.2747,2524.6,2524.1,7.28]
[1725298291890,2.2546,2524.4,2523.8,7.9243]
[1725298292121,6.21603,2524.4,2523.8,7.9243]
[1725298292336,6.21603,2524.4,2523.9,6.75253]
[1725298292697,2.2546,2524.4,2523.9,6.75253]
[1725298293033,2.4525,2524.7,2524.2,3.96165]
[1725298293241,2.4525,2524.7,2524.4,3.96133]
[1725298293414,2.4525,2524.7,2524.3,3.96149]
[1725298293740,6.41337,2524.7,2524.2,3.96161]
[1725298294095,3.96117,2524.6,2524.0,27.178943]
[1725298294292,3.9615,2524.3,2524.0,19.98]
[1725298294531,2.2539,2524.2,2524.0,19.98]
[1725298295552,3.9618,2524.1,2524.0,19.98]
[1725298295754,3.962,2524.0,2523.5,3.96262]
[1725298296052,6.21609,2523.9,2523.5,2.629312]
[1725298296214,6.21609,2523.9,2523.3,3.96296]
[1725298296426,2.2539,2523.9,2523.1,19.98]
[1725298296746,6.41137,2524.2,2523.5,3.96271]
[1725298296945,6.41137,2524.2,2523.2,7.39978284]
[1725298296946,3.96197,2524.0,2523.3,3.96294]
[1725298297146,6.4118,2523.9,2523.4,4.694864]
[1725298298506,3.96228,2523.8,2523.4,3.96283]
[1725298298711,3.96228,2523.8,2523.4,3.96289]
[1725298299517,3.96228,2523.8,2523.3,3.96305]
[1725298299918,3.96228,2523.8,2523.2,7.32051]
[1725298299919,2.4496,2523.9,2523.4,3.96288]
[1725298300145,2.4496,2523.9,2523.7,3.96235]
[1725298300467,2.3002,2524.1,2523.7,3.96235]
[1725298300667,2.3002,2524.1,2523.8,0.09505999]
[1725298301032,2.3002,2524.1,2523.7,3.96235]
[1725298301236,2.3002,2524.1,2523.9,0.0961626]
[1725298301429,2.3002,2524.1,2523.8,0.09621289]
[1725298301635,2.3002,2524.1,2524.0,0.09611231]
[1725298301819,2.3002,2524.1,2523.9,0.0961626]
[1725298302044,2.3002,2524.1,2524.0,0.09611231]
[1725298302285,3.96118,2524.5,2524.0,0.09611231]
[1725298302286,6.26161,2524.4,2524.0,0.09611231]
[1725298302459,6.26161,2524.4,2523.8,4.358365]
[1725298302460,6.26161,2524.4,2523.9,3.96208]
[1725298302773,7.92311,2524.3,2524.0,0.09611231]
[1725298302928,8.945389,2524.3,2523.8,3.96213]
[1725298303122,3.96184,2524.1,2523.9,0.0961626]
[1725298303444,3.96184,2524.1,2523.6,3.96249]
[1725298303629,3.96184,2524.1,2524.0,0.09611231]
[1725298303964,3.96218,2523.9,2523.4,3.96289]
[1725298304273,6.35108,2523.9,2523.5,0.09659021]
[1725298305524,2.3889,2523.9,2523.5,0.09659021]
[1725298305767,2.3889,2523.9,2523.5,4.05932021]
[1725298306814,6.35113,2523.9,2523.5,0.09659021]
[1725298306962,7.50013491,2523.9,2523.5,0.09659021]
[1725298307386,3.96229,2523.8,2523.5,0.09659021]
[1725298307806,6.23011,2523.6,2523.0,31.22343]
[1725298308119,6.23011,2523.6,2523.1,19.98]
[1725298308769,3.96275,2523.5,2523.1,19.98]
[1725298308976,2.2996,2523.3,2523.0,7.28]
[1725298310836,3.96346,2523.1,2522.8,19.98]
[1725298311315,3.96329,2523.2,2522.8,19.98]
[1725298311711,2.2996,2523.3,2522.9,3.9636]
[1725298312674,2.2996,2523.3,2523.0,3.9635]
[1725298313087,2.2996,2523.3,2522.9,3.9636]
[1725298314574,3.96346,2523.1,2522.5,11.24422]
[1725298314751,0.49766821,2523.7,2522.5,11.24422]
[1725298314752,2.4943,2522.9,2522.5,7.28]
[1725298314961,2.4943,2522.9,2522.4,24.34186]
[1725298315162,2.4943,2522.9,2522.5,4.01493556]
[1725298315750,2.4943,2522.9,2522.6,0.09496339]
[1725298316249,2.4943,2522.9,2522.4,23.94446]
[1725298316250,6.45814,2522.9,2522.4,19.98]
[1725298316571,2.4943,2522.9,2522.5,3.96429]
[1725298316775,2.4943,2522.9,2522.6,0.09496339]
[1725298316946,2.4943,2522.9,2522.4,27.95939556]
[1725298317128,2.4943,2522.9,2522.5,0.09501374]
[1725298318404,2.4943,2522.9,2522.5,4.05930374]
[1725298318603,3.96333,2523.2,2522.7,3.96397]
[1725298318907,2.4223,2523.1,2522.8,0.09514599]
[1725298320398,6.38578,2523.1,2522.8,0.09514599]
[1725298320550,3.96369,2522.9,2522.5,19.98]
[1725298320751,7.92748,2522.9,2522.6,0.09524667]
[1725298320985,3.96369,2522.9,2522.6,0.09524667]
[1725298321189,2.3149,2523.0,2522.6,4.05938667]
[1725298321521,2.3149,2523.0,2522.6,6.06691134]
[1725298321691,2.3149,2523.0,2522.6,2.10277134]
[1725298321867,3.96388,2522.8,2522.6,0.09524667]
[1725298322065,6.2603,2522.7,2522.6,0.09524667]
[1725298322456,2.2963,2522.7,2522.6,0.09524667]
[1725298322652,2.2963,2523.3,2522.6,4.05937667]
[1725298322863,6.25951,2523.3,2522.7,3.96394]
[1725298323102,2.2963,2523.3,2522.6,0.09524667]
[1725298323284,3.96345,2523.1,2522.8,0.09538674]
[1725298323607,3.9637,2522.9,2522.5,19.98]
[1725298323968,3.96392,2522.8,2522.5,19.98]
[1725298324816,2.4459,2523.0,2522.5,19.98]
[1725298325116,3.96369,2522.9,2522.5,19.98]
[1725298325504,2.4459,2523.0,2522.5,22.770895]
[1725298325671,6.21956,2523.3,2522.6,23.94412]
[1725298325875,3.96328,2523.2,2522.6,31.2149585]
[1725298326201,6.21956,2523.3,2522.7,3.96397]
[1725298326723,3.96284,2523.5,2522.8,6.96378]
[1725298326869,3.96313,2523.3,2522.6,7.2708085]
[1725298327073,3.96313,2523.3,2522.7,3.96399]
[1725298328117,3.96313,2523.3,2522.8,3.96382]
[1725298328321,6.2194,2523.4,2522.8,3.96382]
[1725298328669,10.18239,2523.4,2522.8,3.96382]
[1725298329065,10.18239,2523.4,2522.8,5.08727785]
[1725298329513,6.21939,2523.4,2522.9,3.96367]
[1725298329715,6.21939,2523.4,2522.5,19.98]
[1725298329716,2.2631,2523.3,2522.5,23.94422]
[1725298330018,2.2631,2522.9,2522.5,23.94431]
[1725298330324,2.2631,2522.9,2522.3,3.96453]
[1725298330325,2.2631,2522.9,2522.4,23.94446]
[1725298330495,6.22681,2522.9,2522.4,19.98]
[1725298330694,10.19061,2522.9,2522.5,0.09535364]
[1725298331004,6.22681,2522.9,2522.5,0.09535364]
[1725298331220,10.19063,2522.9,2522.5,0.09535364]
[1725298331729,3.96386,2522.8,2522.5,0.09535364]
[1725298332326,2.4956,2522.7,2522.5,0.09535364]
[1725298332537,7.92832,2522.6,2522.5,0.09535364]
[1725298332854,7.92832,2522.6,2522.5,0.09550947]
[1725298332855,3.96416,2522.6,2522.5,0.09550947]
[1725298333069,7.92847,2522.6,2522.0,3.96501]
[1725298333350,3.96416,2522.6,2522.5,0.09550947]
[1725298333645,5.006567,2522.6,2522.5,0.09550947]
[1725298333953,5.006567,2522.6,2521.9,11.24525]
[1725298334248,3.96433,2522.5,2521.9,11.24525]
[1725298334543,3.96433,2522.5,2522.0,0.09576126]
[1725298334745,2.4956,2522.3,2522.0,0.09576126]
[1725298335714,3.96479,2522.2,2522.0,0.09576126]
[1725298336402,5.007382,2522.2,2522.0,0.09576126]
[1725298336651,3.96487,2522.2,2522.0,0.09576126]
[1725298336815,6.46023,2522.3,2522.0,0.09576126]
[1725298337163,3.9639,2522.8,2521.8,20.05930346]
[1725298337164,2.4956,2522.6,2521.8,20.05930346]
[1725298337449,3.96433,2522.5,2522.0,3.96504]
[1725298337635,2.4956,2522.6,2521.9,0.09332598]
[1725298337833,3.96442,2522.5,2522.1,0.09322524]
[1725298338156,3.96449,2522.4,2521.8,26.339873]
[1725298338452,3.96449,2522.4,2521.9,3.6034673]
[1725298338667,3.96449,2522.4,2521.9,3.69679328]
[1725298338951,7.92888,2522.5,2521.9,7.66200328]
[1725298340009,3.96448,2522.4,2521.9,7.66200328]
[1725298340427,2.4956,2522.2,2521.9,0.09332598]
[1725298340646,3.96504,2522.1,2521.9,0.09332598]
[1725298340829,3.9651,2522.0,2521.9,0.09332598]
[1725298341033,3.9651,2522.0,2521.6,19.98]
[1725298341220,3.9651,2522.0,2521.9,0.09331181]
[1725298341416,3.96532,2521.9,2521.5,19.98]
[1725298341619,3.9651,2522.0,2521.6,0.09347003]
[1725298342421,3.96526,2521.9,2521.6,0.09347003]
[1725298343049,7.9303,2522.0,2521.6,0.09347003]